[Event "56th Biel Festival MTO 2023"]
[White "Ribiere,Damien"]
[Black "Vincenti,Leonardo"]
[Site "Biel"]
[Round "3.37"]
[Annotator "NA RC"]
[Result "0-1"]
[Date "2023.07.19"]
[WhiteElo "2213"]
[BlackElo "2117"]
[PlyCount "170"]
[TimeControl "60"]

1. e4 {[%emt 0:0:0]} c5 {[%emt 0:0:0]} 2. a3 {[%emt 0:0:0]} g6 {[%emt 0:0:0]} 3. Nc3 {[%emt 0:0:0]} Bg7 {[%emt 0:0:0]} 4. Bc4 {[%emt 0:0:0]} Nc6 {[%emt 0:0:0]} 5. d3 {[%emt 0:0:0]} d6 {[%emt 0:0:0]} 6. f4 {[%emt 0:0:0]} e6 {[%emt 0:0:0]} 7. Nf3 {[%emt 0:0:0]} Nge7 {[%emt 0:0:0]} 8. Ba2 {[%emt 0:0:0]} O-O {[%emt 0:0:0]} 9. h4 {[%emt 0:0:0]} h5 {[%emt 0:0:0]} 10. Ng5 {[%emt 0:0:0]} d5 {[%emt 0:2:50]} 11. g4 {[%emt 0:0:0]} f6 {[%emt 0:13:20]} 12. gxh5 {[%emt 0:8:22]} fxg5 {[%emt 0:2:14]} 13. hxg5 {[%emt 0:0:13]} Qe8 {[%emt 0:5:36]} 14. Bd2 {[%emt 0:4:19]} gxh5 {[%emt 0:6:59]} 15. Rxh5 {[%emt 0:1:59]} Nd4 {[%emt 0:5:5]} 16. Rh2 {[%emt 0:1:7]} Ng6 {[%emt 0:10:14]} 17. Qh5 {[%emt 0:6:8]} Nh4 {[%emt 0:13:38]} 18. Qxe8 {[%emt 0:14:31]} Nhf3+ {[%emt 0:6:49]} 19. Kd1 {[%emt 0:0:8]} Rxe8 {[%emt 0:0:5]} 20. Rf2 {[%emt 0:0:56]} Nxd2 {[%emt 0:8:51]} 21. Kxd2 {[%emt 0:0:11]} dxe4 {[%emt 0:2:52]} 22. dxe4 {[%emt 0:3:8]} b5 {[%emt 0:5:7]} 23. f5 {[%emt 0:3:51]} b4 {[%emt 0:2:31]} 24. f6 {[%emt 0:6:54]} Rd8 {[%emt 0:3:58]} 25. Ke3 {[%emt 0:13:8]} bxc3 {[%emt 0:0:13]} 26. bxc3 {[%emt 0:0:59]} Nb5 {[%emt 0:0:59]} 27. fxg7 {[%emt 0:5:13]} Nxc3 {[%emt 0:2:5]} 28. Rh2 {[%emt 0:0:45]} Kxg7 {[%emt 0:1:31]} 29. Rah1 {[%emt 0:5:34]} Rg8 {[%emt 0:7:53]} 30. Bc4 {[%emt 0:1:42]} Rb8 {[%emt 0:0:42]} 31. Rh7+ {[%emt 0:0:48]} Kf8 {[%emt 0:0:14]} 32. Rf1+ {[%emt 0:1:6]} Ke8 {[%emt 0:0:1]} 33. Rff7 {[%emt 0:1:34]} Na4 {[%emt 0:2:40]} 34. Rxa7 {[%emt 0:0:22]} Nb6 {[%emt 0:0:5]} 35. Bb5+ {[%emt 0:0:24]} Kd8 {[%emt 0:0:1]} 36. c4 {[%emt 0:0:31]} Ra8 {[%emt 0:0:42]} 37. Raf7 {[%emt 0:2:19]} Rxa3+ {[%emt 0:0:40]} 38. Kf4 {[%emt 0:0:3]} Rc3 {[%emt 0:1:1]} 39. Rh1 {[%emt 0:6:5]} Rd3 {[%emt 0:0:26]} 40. g6 {[%emt 0:1:15]} Bd7 {[%emt 0:0:34]} 41. Rg1 {[%emt 0:36:5]} Bxb5 {[%emt 0:0:0]} 42. cxb5 {[%emt 0:0:0]} Rd7 {[%emt 0:0:0]} 43. Rf6 {[%emt 0:0:0]} Re7 {[%emt 0:0:0]} 44. Rd1+ {[%emt 0:0:0]} Kc7 {[%emt 0:0:0]} 45. Ra1 {[%emt 0:0:0]} Kb7 {[%emt 0:1:23]} 46. Rd1 {[%emt 0:0:0]} c4 {[%emt 0:6:50]} 47. Ke5 {[%emt 0:0:0]} Rgg7 {[%emt 0:5:13]} 48. Kf4 {[%emt 0:0:0]} Nd7 {[%emt 0:5:25]} 49. e5 {[%emt 0:0:0]} Nb6 {[%emt 0:0:5]} 50. Ke4 {[%emt 0:3:3]} Nd5 {[%emt 0:0:59]} 51. Rdf1 {[%emt 0:1:11]} c3 {[%emt 0:2:20]} 52. Rc1 {[%emt 0:4:5]} Kb6 {[%emt 0:2:48]} 53. Rxe6+ {[%emt 0:3:12]} Rxe6 {[%emt 0:0:13]} 54. Kxd5 {[%emt 0:0:3]} Rexg6 {[%emt 0:1:12]} 55. Rxc3 {[%emt 0:0:8]} Rd7+ {[%emt 0:0:21]} 56. Ke4 {[%emt 0:0:8]} Kxb5 {[%emt 0:0:19]} 57. Kf5 {[%emt 0:0:31]} Rc6 {[%emt 0:0:43]} 58. Re3 {[%emt 0:1:1]} Rf7+ {[%emt 0:1:2]} 59. Ke4 {[%emt 0:0:25]} Re6 {[%emt 0:1:4]} 60. Kd5 {[%emt 0:0:22]} Rfe7 {[%emt 0:0:5]} 61. Rb3+ {[%emt 0:0:22]} Ka6 {[%emt 0:0:7]} 62. Ra3+ {[%emt 0:0:35]} Kb5 {[%emt 0:0:9]} 63. Rb3+ {[%emt 0:0:3]} Ka4 {[%emt 0:0:3]} 64. Re3 {[%emt 0:0:12]} Kb4 {[%emt 0:0:1]} 65. Re4+ {[%emt 0:0:45]} Kc3 {[%emt 0:0:5]} 66. Re3+ {[%emt 0:0:30]} Kd2 {[%emt 0:0:5]} 67. Re4 {[%emt 0:0:3]} Re8 {[%emt 0:0:38]} 68. Rd4+ {[%emt 0:0:13]} Ke3 {[%emt 0:0:8]} 69. Re4+ {[%emt 0:0:4]} Kf3 {[%emt 0:0:8]} 70. Re1 {[%emt 0:0:4]} Kf4 {[%emt 0:1:30]} 71. Rf1+ {[%emt 0:0:41]} Kg5 {[%emt 0:0:9]} 72. Rg1+ {[%emt 0:0:19]} Kf5 {[%emt 0:0:9]} 73. Rf1+ {[%emt 0:0:4]} Kg6 {[%emt 0:0:16]} 74. Rg1+ {[%emt 0:1:2]} Kf7 {[%emt 0:0:8]} 75. Rf1+ {[%emt 0:0:43]} Ke7 {[%emt 0:0:7]} 76. Rh1 {[%emt 0:2:45]} Kd7 {[%emt 0:2:6]} 77. Rh7+ {[%emt 0:1:37]} R8e7 {[%emt 0:0:49]} 78. Rh5 {[%emt 0:0:5]} Ra6 {[%emt 0:0:15]} 79. Rg5 {[%emt 0:0:13]} Ra5+ {[%emt 0:0:15]} 80. Ke4 {[%emt 0:0:4]} Re6 {[%emt 0:1:11]} 81. Rh5 {[%emt 0:0:0]} Kc6 {[%emt 0:0:0]} 82. Rg5 {[%emt 0:0:0]} Rd5 {[%emt 0:0:0]} 83. Rh5 {[%emt 0:0:40]} Kc5 {[%emt 0:0:0]} 84. Rg5 {[%emt 0:0:36]} Rd4+ {[%emt 0:0:0]} 85. Kf5 {[%emt 0:0:13]} Kd5 {[%emt 0:0:0]} 0-1

[Event "56th Biel Festival MTO 2023"]
[White "Eidelman,Gabriel"]
[Black "Erne,Raphael"]
[Site "Biel"]
[Round "3.38"]
[Annotator "RC"]
[Result "1-0"]
[Date "2023.07.19"]
[WhiteElo "2204"]
[BlackElo "2077"]
[PlyCount "68"]
[TimeControl "60"]

1. d4 {[%emt 0:0:0]} d5 {[%emt 0:0:0]} 2. c4 {[%emt 0:0:0]} c6 {[%emt 0:0:0]} 3. Nf3 {[%emt 0:0:0]} Nf6 {[%emt 0:0:0]} 4. e3 {[%emt 0:0:0]} e6 {[%emt 0:0:0]} 5. b3 {[%emt 0:0:0]} Nbd7 {[%emt 0:0:0]} 6. Bd3 {[%emt 0:0:0]} Bd6 {[%emt 0:0:0]} 7. Bb2 {[%emt 0:0:0]} O-O {[%emt 0:6:27]} 8. O-O {[%emt 0:0:0]} b6 {[%emt 0:4:8]} 9. Nbd2 {[%emt 0:2:53]} Qc7 {[%emt 0:7:16]} 10. Rc1 {[%emt 0:9:42]} Bb7 {[%emt 0:7:51]} 11. cxd5 {[%emt 0:15:34]} exd5 {[%emt 0:0:57]} 12. Qe2 {[%emt 0:1:9]} Rfe8 {[%emt 0:3:19]} 13. Ba6 {[%emt 0:7:31]} Rac8 {[%emt 0:4:9]} 14. Bxb7 {[%emt 0:5:22]} Qxb7 {[%emt 0:0:7]} 15. Rfd1 {[%emt 0:6:0]} Ne4 {[%emt 0:2:21]} 16. Nh4 {[%emt 0:9:18]} Qc7 {[%emt 0:10:11]} 17. Ndf3 {[%emt 0:2:21]} g6 {[%emt 0:12:57]} 18. Rc2 {[%emt 0:3:27]} Qd8 {[%emt 0:6:28]} 19. Rdc1 {[%emt 0:7:22]} Qf6 {[%emt 0:1:56]} 20. g3 {[%emt 0:0:20]} Bb8 {[%emt 0:6:5]} 21. Ng2 {[%emt 0:0:39]} g5 {[%emt 0:3:6]} 22. Nfe1 {[%emt 0:14:33]} Qe6 {[%emt 0:6:21]} 23. Nd3 {[%emt 0:9:1]} Nef6 {[%emt 0:7:18]} 24. Nb4 {[%emt 0:3:46]} c5 {[%emt 0:5:6]} 25. dxc5 {[%emt 0:0:19]} Nxc5 {[%emt 0:1:50]} 26. Na6 {[%emt 0:1:24]} Nxa6 {[%emt 0:2:35]} 27. Qxa6 {[%emt 0:0:12]} Rxc2 {[%emt 0:0:50]} 28. Rxc2 {[%emt 0:0:2]} Ne4 {[%emt 0:0:16]} 29. Qd3 {[%emt 0:2:10]} Be5 {[%emt 0:0:54]} 30. Bxe5 {[%emt 0:1:20]} Qxe5 {[%emt 0:0:1]} 31. Qd4 {[%emt 0:0:1]} Qf5 {[%emt 0:1:17]} 32. Ne1 {[%emt 0:1:19]} g4 {[%emt 0:0:46]} 33. Qd1 {[%emt 0:0:36]} Ng5 {[%emt 0:0:19]} 34. Qd3 {[%emt 0:0:34]} Nf3+ {[%emt 0:1:4]} 1-0

[Event "56th Biel Festival MTO 2023"]
[White "Matta,Vinay Kumar"]
[Black "Ouellet,Maili-Jade"]
[Site "Biel"]
[Round "3.39"]
[Annotator "NA RC"]
[Result "1/2-1/2"]
[Date "2023.07.19"]
[WhiteElo "2111"]
[BlackElo "2201"]
[PlyCount "80"]
[TimeControl "60"]

1. a3 {[%emt 0:0:0]} d5 {[%emt 0:0:0]} 2. Nf3 {[%emt 0:0:0]} c5 {[%emt 0:0:0]} 3. c4 {[%emt 0:0:0]} e6 {[%emt 0:0:0]} 4. cxd5 {[%emt 0:0:0]} exd5 {[%emt 0:0:0]} 5. d4 {[%emt 0:0:0]} Nf6 {[%emt 0:0:0]} 6. Nc3 {[%emt 0:0:0]} Nc6 {[%emt 0:0:0]} 7. Bg5 {[%emt 0:0:0]} Be6 {[%emt 0:0:0]} 8. e3 {[%emt 0:2:6]} a6 {[%emt 0:1:32]} 9. Be2 {[%emt 0:9:14]} c4 {[%emt 0:11:23]} 10. O-O {[%emt 0:1:10]} Be7 {[%emt 0:8:8]} 11. b3 {[%emt 0:7:13]} cxb3 {[%emt 0:10:53]} 12. Qxb3 {[%emt 0:3:26]} Na5 {[%emt 0:0:47]} 13. Qb2 {[%emt 0:1:31]} O-O {[%emt 0:0:55]} 14. a4 {[%emt 0:7:41]} Rc8 {[%emt 0:9:36]} 15. Rfc1 {[%emt 0:2:9]} Rc6 {[%emt 0:4:9]} 16. Nd2 {[%emt 0:9:55]} Qd6 {[%emt 0:13:25]} 17. Na2 {[%emt 0:12:8]} Rfc8 {[%emt 0:3:30]} 18. Rxc6 {[%emt 0:0:45]} Qxc6 {[%emt 0:1:2]} 19. Bxf6 {[%emt 0:0:39]} Bxf6 {[%emt 0:0:57]} 20. Qb4 {[%emt 0:2:42]} Qc7 {[%emt 0:1:59]} 21. Rc1 {[%emt 0:3:22]} Nc6 {[%emt 0:0:27]} 22. Qb1 {[%emt 0:1:24]} Be7 {[%emt 0:1:28]} 23. Bd3 {[%emt 0:2:31]} g6 {[%emt 0:1:20]} 24. Nb3 {[%emt 0:1:10]} Bd6 {[%emt 0:3:14]} 25. g3 {[%emt 0:1:19]} Qb6 {[%emt 0:2:14]} 26. Nc5 {[%emt 0:1:34]} Qxb1 {[%emt 0:1:13]} 27. Bxb1 {[%emt 0:0:37]} Na5 {[%emt 0:1:1]} 28. Nxe6 {[%emt 0:4:39]} Rxc1+ {[%emt 0:0:4]} 29. Nxc1 {[%emt 0:0:4]} fxe6 {[%emt 0:0:4]} 30. Ba2 {[%emt 0:1:0]} Kf7 {[%emt 0:2:9]} 31. Nd3 {[%emt 0:1:37]} b5 {[%emt 0:9:41]} 32. axb5 {[%emt 0:0:33]} axb5 {[%emt 0:0:1]} 33. Kf1 {[%emt 0:1:31]} b4 {[%emt 0:0:53]} 34. Nc1 {[%emt 0:0:40]} Kf6 {[%emt 0:1:37]} 35. Ke2 {[%emt 0:0:17]} h5 {[%emt 0:1:25]} 36. Kd3 {[%emt 0:3:26]} Kf5 {[%emt 0:2:16]} 37. f3 {[%emt 0:3:32]} Kf6 {[%emt 0:0:23]} 38. e4 {[%emt 0:1:15]} dxe4+ {[%emt 0:0:4]} 39. Kxe4 {[%emt 0:2:15]} g5 {[%emt 0:1:17]} 40. Nb3 {[%emt 0:7:39]} Nxb3 {[%emt 0:4:10]} 1/2-1/2

[Event "56th Biel Festival MTO 2023"]
[White "Perkampus,Laurin"]
[Black "Coles,Robin"]
[Site "Biel"]
[Round "3.40"]
[Annotator "NA"]
[Result "0-1"]
[Date "2023.07.19"]
[WhiteElo "2197"]
[BlackElo "2070"]
[PlyCount "81"]
[TimeControl "60"]

1. d4 {[%emt 0:0:0]} d5 {[%emt 0:0:0]} 2. c4 {[%emt 0:0:0]} e6 {[%emt 0:0:0]} 3. Nc3 {[%emt 0:0:0]} Nf6 {[%emt 0:0:0]} 4. cxd5 {[%emt 0:0:0]} exd5 {[%emt 0:0:0]} 5. Bg5 {[%emt 0:0:0]} c6 {[%emt 0:0:0]} 6. e3 {[%emt 0:0:0]} h6 {[%emt 0:0:0]} 7. Bh4 {[%emt 0:0:0]} Be7 {[%emt 0:0:0]} 8. Bd3 {[%emt 0:0:0]} O-O {[%emt 0:0:0]} 9. Nge2 {[%emt 0:3:1]} Re8 {[%emt 0:0:0]} 10. O-O {[%emt 0:4:4]} Nbd7 {[%emt 0:0:0]} 11. Qc2 {[%emt 0:8:8]} Ne4 {[%emt 0:0:0]} 12. Bxe7 {[%emt 0:4:35]} Qxe7 {[%emt 0:0:0]} 13. Bxe4 {[%emt 0:4:8]} dxe4 {[%emt 0:0:0]} 14. d5 {[%emt 0:2:23]} Nf6 {[%emt 0:5:17]} 15. dxc6 {[%emt 0:2:14]} bxc6 {[%emt 0:0:26]} 16. Na4 {[%emt 0:13:7]} Ba6 {[%emt 0:3:51]} 17. Rfe1 {[%emt 0:2:3]} Bd3 {[%emt 0:5:45]} 18. Qc5 {[%emt 0:2:34]} Qc7 {[%emt 0:9:36]} 19. Rac1 {[%emt 0:25:49]} Ng4 {[%emt 0:9:4]} 20. Qh5 {[%emt 0:5:3]} Ne5 {[%emt 0:3:53]} 21. Ng3 {[%emt 0:7:54]} Rab8 {[%emt 0:8:5]} 22. b3 {[%emt 0:7:7]} Rb5 {[%emt 0:5:24]} 23. Qh4 {[%emt 0:3:17]} Ng6 {[%emt 0:7:16]} 24. Qh3 {[%emt 0:1:7]} Rd5 {[%emt 0:4:15]} 25. Nc3 {[%emt 0:1:52]} Rg5 {[%emt 0:3:15]} 26. Nce2 {[%emt 0:2:27]} Ba6 {[%emt 0:2:37]} 27. Nd4 {[%emt 0:2:35]} Bc8 {[%emt 0:3:30]} 28. Rxc6 {[%emt 0:0:8]} Qa5 {[%emt 0:3:25]} 29. Rxc8 {[%emt 0:0:16]} Qxe1+ {[%emt 0:0:5]} 30. Nf1 {[%emt 0:0:4]} Rxc8 {[%emt 0:0:56]} 31. Qxc8+ {[%emt 0:0:0]} Kh7 {[%emt 0:0:18]} 32. Qc4 {[%emt 0:1:4]} Ne5 {[%emt 0:3:0]} 33. Qc2 {[%emt 0:1:14]} Nd3 {[%emt 0:2:54]} 34. Qd2 {[%emt 0:0:44]} Qb1 {[%emt 0:5:41]} 35. a4 {[%emt 0:0:31]} Rc5 {[%emt 0:1:5]} 36. Ne2 {[%emt 0:0:29]} Rc2 {[%emt 0:0:29]} 37. Qa5 {[%emt 0:0:13]} Rc5 {[%emt 0:2:52]} 38. Qxa7 {[%emt 0:0:10]} Qe1 {[%emt 0:0:34]} 39. Neg3 {[%emt 0:1:0]} Qxf2+ {[%emt 0:0:34]} 40. Kh1 {[%emt 0:0:3]} Rc1 {[%emt 0:0:58]} 41. h3 {[%emt 0:0:0]} 0-1

[Event "56th Biel Festival MTO 2023"]
[White "Pernutz,Hans-Gerhard"]
[Black "Coles,Ruben"]
[Site "Biel"]
[Round "3.41"]
[Annotator "NA RC"]
[Result "1/2-1/2"]
[Date "2023.07.19"]
[WhiteElo "2054"]
[BlackElo "2167"]
[PlyCount "114"]
[TimeControl "60"]

1. e4 {[%emt 0:0:0]} e6 {[%emt 0:0:0]} 2. d4 {[%emt 0:0:0]} d5 {[%emt 0:0:0]} 3. Nd2 {[%emt 0:0:0]} c5 {[%emt 0:0:0]} 4. exd5 {[%emt 0:0:0]} exd5 {[%emt 0:0:0]} 5. Bb5+ {[%emt 0:0:0]} Nc6 {[%emt 0:0:0]} 6. Ngf3 {[%emt 0:0:0]} Qe7+ {[%emt 0:0:0]} 7. Qe2 {[%emt 0:0:0]} Qxe2+ {[%emt 0:0:0]} 8. Kxe2 {[%emt 0:0:0]} a6 {[%emt 0:0:0]} 9. Bxc6+ {[%emt 0:0:0]} bxc6 {[%emt 0:0:0]} 10. Ne5 {[%emt 0:7:36]} c4 {[%emt 0:0:0]} 11. b3 {[%emt 0:2:6]} f6 {[%emt 0:0:0]} 12. Nef3 {[%emt 0:1:6]} Be6 {[%emt 0:0:7]} 13. bxc4 {[%emt 0:7:14]} dxc4 {[%emt 0:0:31]} 14. Rb1 {[%emt 0:0:12]} O-O-O {[%emt 0:7:18]} 15. Nf1 {[%emt 0:4:7]} Bd5 {[%emt 0:7:39]} 16. Ne3 {[%emt 0:6:44]} Ne7 {[%emt 0:11:19]} 17. Rb6 {[%emt 0:8:48]} Ng6 {[%emt 0:15:7]} 18. Nxd5 {[%emt 0:2:31]} cxd5 {[%emt 0:3:35]} 19. Rxa6 {[%emt 0:0:11]} Kb7 {[%emt 0:1:55]} 20. Ra5 {[%emt 0:1:56]} Kb6 {[%emt 0:3:39]} 21. Ra4 {[%emt 0:7:12]} Bd6 {[%emt 0:9:33]} 22. g3 {[%emt 0:9:1]} Ra8 {[%emt 0:7:48]} 23. Rxa8 {[%emt 0:1:14]} Rxa8 {[%emt 0:2:3]} 24. a3 {[%emt 0:1:10]} Bxa3 {[%emt 0:2:34]} 25. Bxa3 {[%emt 0:0:15]} Rxa3 {[%emt 0:0:5]} 26. Rb1+ {[%emt 0:0:41]} Kc7 {[%emt 0:0:38]} 27. h4 {[%emt 0:4:44]} Ne7 {[%emt 0:4:24]} 28. Rc1 {[%emt 0:9:10]} Rc3 {[%emt 0:3:19]} 29. Ne1 {[%emt 0:2:20]} Nf5 {[%emt 0:2:27]} 30. Kd2 {[%emt 0:0:11]} Ra3 {[%emt 0:0:16]} 31. c3 {[%emt 0:0:12]} Nd6 {[%emt 0:0:36]} 32. f3 {[%emt 0:3:3]} Ra2+ {[%emt 0:3:1]} 33. Rc2 {[%emt 0:6:53]} Ra1 {[%emt 0:3:41]} 34. Ng2 {[%emt 0:0:42]} Kc6 {[%emt 0:5:43]} 35. Ke2 {[%emt 0:1:22]} Nb5 {[%emt 0:2:30]} 36. Ne3 {[%emt 0:2:3]} Nd6 {[%emt 0:4:6]} 37. Kf2 {[%emt 0:0:58]} Ra3 {[%emt 0:2:37]} 38. Ke2 {[%emt 0:0:14]} Rb3 {[%emt 0:1:33]} 39. Kd2 {[%emt 0:2:6]} Nb5 {[%emt 0:1:6]} 40. Nd1 {[%emt 0:2:50]} Na3 {[%emt 0:0:37]} 41. Rb2 {[%emt 0:33:35]} Kd6 {[%emt 0:0:0]} 42. Kc1 {[%emt 0:0:0]} Rxb2 {[%emt 0:0:0]} 43. Kxb2 {[%emt 0:0:0]} Nb5 {[%emt 0:0:0]} 44. Kc2 {[%emt 0:0:0]} Ke6 {[%emt 0:0:0]} 45. Ne3 {[%emt 0:0:0]} g6 {[%emt 0:0:0]} 46. Ng2 {[%emt 0:0:0]} g5 {[%emt 0:0:25]} 47. hxg5 {[%emt 0:0:0]} fxg5 {[%emt 0:0:8]} 48. g4 {[%emt 0:0:0]} Kf6 {[%emt 0:1:36]} 49. Ne3 {[%emt 0:0:0]} Ke6 {[%emt 0:0:7]} 50. Nf5 {[%emt 0:0:0]} Nd6 {[%emt 0:1:11]} 51. Ng3 {[%emt 0:0:0]} Kf6 {[%emt 0:2:54]} 52. Kd2 {[%emt 0:0:0]} Kg6 {[%emt 0:1:15]} 53. Nf1 {[%emt 0:0:0]} Kf6 {[%emt 0:0:17]} 54. Ne3 {[%emt 0:0:0]} Ke6 {[%emt 0:0:4]} 55. Nf1 {[%emt 0:0:0]} Kf6 {[%emt 0:0:6]} 56. Ne3 {[%emt 0:0:0]} Ke6 {[%emt 0:0:9]} 57. Nf1 {[%emt 0:0:0]} Kf6 {[%emt 0:0:8]} 1/2-1/2

[Event "56th Biel Festival MTO 2023"]
[White "Gomez Barrera,Javiera Belen"]
[Black "Jaivardhan Raj"]
[Site "Biel"]
[Round "3.42"]
[Annotator "RC"]
[Result "1-0"]
[Date "2023.07.19"]
[WhiteElo "2256"]
[BlackElo "2009"]
[PlyCount "61"]
[TimeControl "60"]

1. e4 {[%emt 0:0:0]} c5 {[%emt 0:0:0]} 2. Nf3 {[%emt 0:0:0]} e6 {[%emt 0:0:0]} 3. d4 {[%emt 0:0:0]} cxd4 {[%emt 0:0:0]} 4. Nxd4 {[%emt 0:0:0]} Nc6 {[%emt 0:0:0]} 5. Nc3 {[%emt 0:0:0]} Qc7 {[%emt 0:0:0]} 6. Be2 {[%emt 0:0:0]} a6 {[%emt 0:0:0]} 7. Nxc6 {[%emt 0:0:0]} dxc6 {[%emt 0:0:0]} 8. f4 {[%emt 0:5:37]} b5 {[%emt 0:0:0]} 9. e5 {[%emt 0:11:27]} Bb7 {[%emt 0:0:0]} 10. Bf3 {[%emt 0:9:41]} Bb4 {[%emt 0:0:26]} 11. Bd2 {[%emt 0:1:8]} Rd8 {[%emt 0:10:49]} 12. Qe2 {[%emt 0:0:32]} Bxc3 {[%emt 0:7:34]} 13. Bxc3 {[%emt 0:0:12]} c5 {[%emt 0:0:35]} 14. O-O {[%emt 0:7:59]} Ne7 {[%emt 0:4:43]} 15. Be1 {[%emt 0:17:42]} O-O {[%emt 0:11:28]} 16. Bh4 {[%emt 0:9:19]} Rd7 {[%emt 0:7:1]} 17. Bxb7 {[%emt 0:4:17]} Qxb7 {[%emt 0:0:18]} 18. Bxe7 {[%emt 0:0:22]} Rxe7 {[%emt 0:0:2]} 19. Rad1 {[%emt 0:0:23]} Rd7 {[%emt 0:4:16]} 20. Rxd7 {[%emt 0:0:38]} Qxd7 {[%emt 0:0:1]} 21. Rd1 {[%emt 0:0:1]} Qc8 {[%emt 0:2:49]} 22. Qd3 {[%emt 0:1:18]} c4 {[%emt 0:1:17]} 23. Qd4 {[%emt 0:2:51]} Qb7 {[%emt 0:2:25]} 24. Qe3 {[%emt 0:1:22]} h6 {[%emt 0:2:28]} 25. Rd6 {[%emt 0:0:50]} Ra8 {[%emt 0:2:14]} 26. Qd4 {[%emt 0:4:57]} Qa7 {[%emt 0:1:43]} 27. c3 {[%emt 0:12:25]} Kf8 {[%emt 0:1:49]} 28. Kf2 {[%emt 0:0:46]} Ke7 {[%emt 0:0:34]} 29. Ke2 {[%emt 0:1:24]} g6 {[%emt 0:9:23]} 30. g4 {[%emt 0:3:1]} h5 {[%emt 0:11:23]} 31. h4 {[%emt 0:4:31]} 1-0

[Event "56th Biel Festival MTO 2023"]
[White "Gemelli,Romain"]
[Black "Ermitsch,Magnus"]
[Site "Biel"]
[Round "3.43"]
[Annotator "NA"]
[Result "1/2-1/2"]
[Date "2023.07.19"]
[WhiteElo "2122"]
[BlackElo "2232"]
[PlyCount "82"]
[TimeControl "60"]

1. d4 {[%emt 0:0:0]} d5 {[%emt 0:0:0]} 2. c4 {[%emt 0:0:0]} c6 {[%emt 0:0:0]} 3. Nc3 {[%emt 0:0:0]} Nf6 {[%emt 0:0:0]} 4. Nf3 {[%emt 0:0:0]} e6 {[%emt 0:0:0]} 5. e3 {[%emt 0:0:0]} Nbd7 {[%emt 0:0:0]} 6. Bd3 {[%emt 0:0:0]} dxc4 {[%emt 0:0:0]} 7. Bxc4 {[%emt 0:0:0]} b5 {[%emt 0:0:0]} 8. Bb3 {[%emt 0:0:0]} b4 {[%emt 0:0:0]} 9. Ne2 {[%emt 0:0:0]} Bb7 {[%emt 0:0:0]} 10. O-O {[%emt 0:0:0]} Bd6 {[%emt 0:0:0]} 11. Nf4 {[%emt 0:0:0]} O-O {[%emt 0:0:0]} 12. Ng5 {[%emt 0:0:0]} Bxf4 {[%emt 0:0:0]} 13. exf4 {[%emt 0:0:0]} h6 {[%emt 0:0:0]} 14. Nf3 {[%emt 0:0:0]} c5 {[%emt 0:0:0]} 15. Be3 {[%emt 0:0:0]} Rc8 {[%emt 0:0:0]} 16. Rc1 {[%emt 0:0:0]} Qe7 {[%emt 0:10:9]} 17. Qe2 {[%emt 0:5:17]} Nd5 {[%emt 0:8:57]} 18. Rfd1 {[%emt 0:10:28]} Nxe3 {[%emt 0:6:13]} 19. Qxe3 {[%emt 0:0:48]} Bxf3 {[%emt 0:16:34]} 20. Qxf3 {[%emt 0:1:10]} Nb6 {[%emt 0:1:45]} 21. dxc5 {[%emt 0:28:12]} Rxc5 {[%emt 0:0:11]} 22. Qe4 {[%emt 0:4:17]} Rfc8 {[%emt 0:16:4]} 23. Rxc5 {[%emt 0:24:42]} Qxc5 {[%emt 0:0:32]} 24. Qe3 {[%emt 0:0:54]} a5 {[%emt 0:13:25]} 25. Rd8+ {[%emt 0:5:2]} Kh7 {[%emt 0:1:5]} 26. Rxc8 {[%emt 0:0:20]} Qxc8 {[%emt 0:1:5]} 27. g3 {[%emt 0:4:1]} Qc6 {[%emt 0:1:23]} 28. Bd1 {[%emt 0:1:7]} Nc4 {[%emt 0:10:39]} 29. Bc2+ {[%emt 0:3:49]} Kg8 {[%emt 0:6:22]} 30. Qd3 {[%emt 0:4:29]} g6 {[%emt 0:0:56]} 31. Qd8+ {[%emt 0:0:52]} Kh7 {[%emt 0:1:54]} 32. Qf6 {[%emt 0:3:1]} Qc7 {[%emt 0:1:47]} 33. Bd3 {[%emt 0:3:13]} Nd6 {[%emt 0:2:26]} 34. Qd4 {[%emt 0:2:14]} Qc1+ {[%emt 0:1:24]} 35. Kg2 {[%emt 0:0:25]} Qc6+ {[%emt 0:0:7]} 36. Kf1 {[%emt 0:2:8]} Kg8 {[%emt 0:0:46]} 37. h4 {[%emt 0:1:51]} h5 {[%emt 0:0:39]} 38. Ke2 {[%emt 0:0:28]} Qc7 {[%emt 0:2:22]} 39. Qe5 {[%emt 0:0:34]} Qb6 {[%emt 0:0:33]} 40. Qe3 {[%emt 0:0:36]} Qc6 {[%emt 0:2:18]} 41. Qd4 {[%emt 0:0:0]} Qc7 {[%emt 0:0:0]} 1/2-1/2

[Event "56th Biel Festival MTO 2023"]
[White "Adam,Rafael"]
[Black "Ozcan,Kaan"]
[Site "Biel"]
[Round "3.44"]
[Annotator "RC"]
[Result "1-0"]
[Date "2023.07.19"]
[WhiteElo "2117"]
[BlackElo "2196"]
[PlyCount "155"]
[TimeControl "60"]

1. Nf3 {[%emt 0:0:0]} d5 {[%emt 0:0:0]} 2. d4 {[%emt 0:0:0]} Nf6 {[%emt 0:0:0]} 3. c4 {[%emt 0:0:0]} c6 {[%emt 0:0:0]} 4. e3 {[%emt 0:0:0]} Bf5 {[%emt 0:0:0]} 5. Nc3 {[%emt 0:0:0]} e6 {[%emt 0:0:0]} 6. Nh4 {[%emt 0:0:0]} Be4 {[%emt 0:0:0]} 7. f3 {[%emt 0:0:0]} Bg6 {[%emt 0:0:0]} 8. Qb3 {[%emt 0:0:0]} Qc7 {[%emt 0:0:0]} 9. g3 {[%emt 0:0:0]} Be7 {[%emt 0:0:0]} 10. Bd2 {[%emt 0:0:0]} Nbd7 {[%emt 0:0:0]} 11. cxd5 {[%emt 0:0:0]} exd5 {[%emt 0:3:9]} 12. Be2 {[%emt 0:4:30]} a5 {[%emt 0:15:42]} 13. Nxg6 {[%emt 0:7:15]} hxg6 {[%emt 0:0:23]} 14. e4 {[%emt 0:2:45]} dxe4 {[%emt 0:11:24]} 15. fxe4 {[%emt 0:0:19]} Bb4 {[%emt 0:7:43]} 16. e5 {[%emt 0:30:3]} Bxc3 {[%emt 0:3:50]} 17. bxc3 {[%emt 0:0:47]} Nd5 {[%emt 0:4:0]} 18. O-O {[%emt 0:3:44]} Qb6 {[%emt 0:14:7]} 19. Qa3 {[%emt 0:18:19]} Rf8 {[%emt 0:15:47]} 20. Rab1 {[%emt 0:21:17]} Qc7 {[%emt 0:3:38]} 21. c4 {[%emt 0:0:50]} Ne7 {[%emt 0:2:22]} 22. Bg5 {[%emt 0:6:46]} f6 {[%emt 0:5:35]} 23. exf6 {[%emt 0:0:9]} Nxf6 {[%emt 0:0:49]} 24. Bf4 {[%emt 0:3:16]} Qd7 {[%emt 0:1:10]} 25. Rbd1 {[%emt 0:1:24]} Kf7 {[%emt 0:4:2]} 26. Bf3 {[%emt 0:1:14]} Rfd8 {[%emt 0:1:56]} 27. Rfe1 {[%emt 0:0:24]} Re8 {[%emt 0:1:29]} 28. Be5 {[%emt 0:0:46]} Kg8 {[%emt 0:2:35]} 29. Qc3 {[%emt 0:0:14]} Rf8 {[%emt 0:1:40]} 30. Bg2 {[%emt 0:0:13]} a4 {[%emt 0:1:25]} 31. Qb4 {[%emt 0:0:18]} Rfe8 {[%emt 0:0:56]} 32. Bd6 {[%emt 0:1:21]} Rf8 {[%emt 0:0:55]} 33. Be5 {[%emt 0:0:30]} Rf7 {[%emt 0:1:1]} 34. h3 {[%emt 0:0:31]} g5 {[%emt 0:0:47]} 35. Rf1 {[%emt 0:0:30]} g4 {[%emt 0:0:46]} 36. h4 {[%emt 0:0:10]} Ng6 {[%emt 0:0:32]} 37. Bd6 {[%emt 0:0:48]} Rd8 {[%emt 0:0:31]} 38. c5 {[%emt 0:0:27]} Ra8 {[%emt 0:0:35]} 39. Rb1 {[%emt 0:0:0]} Qe6 {[%emt 0:0:0]} 40. Rf2 {[%emt 0:0:0]} Re8 {[%emt 0:0:0]} 41. Qxa4 {[%emt 0:16:8]} Qe3 {[%emt 0:13:46]} 42. Qb3 {[%emt 0:0:50]} Qxd4 {[%emt 0:2:7]} 43. Rd1 {[%emt 0:0:26]} Qe3 {[%emt 0:0:49]} 44. Qxe3 {[%emt 0:0:26]} Rxe3 {[%emt 0:0:1]} 45. Rb1 {[%emt 0:0:48]} Rd3 {[%emt 0:3:22]} 46. Rfb2 {[%emt 0:2:54]} Nf8 {[%emt 0:2:14]} 47. Rxb7 {[%emt 0:4:30]} Rxb7 {[%emt 0:0:15]} 48. Rxb7 {[%emt 0:0:5]} Rd1+ {[%emt 0:1:46]} 49. Kf2 {[%emt 0:2:39]} Rd2+ {[%emt 0:0:53]} 50. Kf1 {[%emt 0:0:18]} Ne6 {[%emt 0:2:59]} 51. Be5 {[%emt 0:5:53]} Nxc5 {[%emt 0:3:11]} 52. Rb2 {[%emt 0:0:28]} Rxb2 {[%emt 0:2:25]} 53. Bxb2 {[%emt 0:0:4]} Nd5 {[%emt 0:1:40]} 54. Ke2 {[%emt 0:1:34]} Kf7 {[%emt 0:0:51]} 55. Bd4 {[%emt 0:0:40]} Ne6 {[%emt 0:0:43]} 56. Bb2 {[%emt 0:1:17]} Nc5 {[%emt 0:0:21]} 57. Bd4 {[%emt 0:0:34]} Ne6 {[%emt 0:0:5]} 58. Be5 {[%emt 0:0:25]} Nc5 {[%emt 0:0:35]} 59. Kd2 {[%emt 0:0:36]} g6 {[%emt 0:0:58]} 60. Bd6 {[%emt 0:0:34]} Nb7 {[%emt 0:0:37]} 61. Ba3 {[%emt 0:0:0]} Nd8 {[%emt 0:0:0]} 62. Kd3 {[%emt 0:0:0]} Ne6 {[%emt 0:0:0]} 63. Bd6 {[%emt 0:0:0]} Ke8 {[%emt 0:0:0]} 64. Ke4 {[%emt 0:0:0]} Nc3+ {[%emt 0:0:0]} 65. Ke5 {[%emt 0:0:0]} Nd8 {[%emt 0:0:0]} 66. Kf6 {[%emt 0:0:0]} Nxa2 {[%emt 0:0:0]} 67. Kxg6 {[%emt 0:0:0]} Kd7 {[%emt 0:0:0]} 68. Be5 {[%emt 0:0:0]} Nb4 {[%emt 0:0:0]} 69. Be4 {[%emt 0:0:0]} Nd5 {[%emt 0:0:0]} 70. Bxd5 {[%emt 0:3:26]} cxd5 {[%emt 0:0:0]} 71. Bf6 {[%emt 0:1:8]} Ne6 {[%emt 0:0:0]} 72. h5 {[%emt 0:0:53]} d4 {[%emt 0:0:0]} 73. h6 {[%emt 0:0:33]} d3 {[%emt 0:0:0]} 74. Bc3 {[%emt 0:0:7]} Nf8+ {[%emt 0:1:57]} 75. Kf7 {[%emt 0:0:17]} Nh7 {[%emt 0:0:29]} 76. Bd2 {[%emt 0:0:10]} Kd8 {[%emt 0:1:3]} 77. Kg7 {[%emt 0:0:8]} Ke7 {[%emt 0:0:22]} 78. Kxh7 {[%emt 0:0:25]} 1-0